[Event "White Rook U14 Final 2019"]
[Site "Sochi"]
[Date "2019.06.10"]
[Round "9.9"]
[White "Abrazevich, Yauheni"]
[Black "Kuzmin, Roman"]
[Result "0-1"]
[ECO "A04"]
[WhiteElo "1888"]
[BlackElo "2119"]
[Annotator "NA"]
[PlyCount "77"]
[EventDate "2019.06.02"]
[EventCountry "RUS"]
[SourceTitle "playchess.com"]
[Source "ChessBase"]
[SourceQuality "1"]
[TimeControl "5400+30"]

1. e4 {[%emt 0:00:00]} c5 {[%emt 0:00:00]} 2. Nf3 {[%emt 0:00:00]} d6 {[%emt 0:00:00]} 3. d3 {[%emt 0:00:00]} Nc6 {[%emt 0:00:00]} 4. g3 {[%emt 0:00:00]} g6 {[%emt 0:00:00]} 5. Bg2 {[%emt 0:00:08]} Bg7 {[%emt 0:00:00]} 6. O-O {[%emt 0:00:06]} e5 {[%emt 0:00:00]} 7. c3 {[%emt 0:01:15]} Nge7 {[%emt 0:00:00]} 8. Be3 {[%emt 0:01:02]} O-O {[%emt 0:08:28]} 9. a3 {[%emt 0:22:10]} h6 {[%emt 0:09:24]} 10. Ne1 {[%emt 0:00:00]} Be6 {[%emt 0:00:00]} 11. b4 {[%emt 0:00:00]} cxb4 {[%emt 0:00:00]} 12. axb4 {[%emt 0:00:00]} a6 {[%emt 0:00:00]} 13. Qd2 {[%emt 0:00:00]} Kh7 {[%emt 0:00:00]} 14. Nc2 {[%emt 0:00:00]} d5 {[%emt 0:02:26]} 15. Bc5 {[%emt 0:03:37]} Re8 {[%emt 0:29:52]} 16. Bxe7 {[%emt 0:32:11]} Nxe7 {[%emt 0:00:00]} 17. Rd1 {[%emt 0:00:00]} Qc7 {[%emt 0:00:00]} 18. Ne3 {[%emt 0:00:00]} d4 {[%emt 0:00:00]} 19. Nd5 {[%emt 0:00:02]} Bxd5 {[%emt 0:03:44]} 20. exd5 {[%emt 0:02:01]} dxc3 {[%emt 0:02:36]} 21. Nxc3 {[%emt 0:00:13]} f5 {[%emt 0:00:12]} 22. Rac1 {[%emt 0:00:26]} Qd6 {[%emt 0:00:32]} 23. Na4 {[%emt 0:06:08]} b5 {[%emt 0:01:04]} 24. Nc5 {[%emt 0:06:15]} Nxd5 {[%emt 0:07:57]} 25. Nb7 {[%emt 0:00:16]} Qd7 {[%emt 0:03:34]} 26. Rc5 {[%emt 0:00:15]} Ne7 {[%emt 0:00:04]} 27. Qc2 {[%emt 0:04:56]} Rac8 {[%emt 0:00:25]} 28. Rc1 {[%emt 0:03:42]} e4 {[%emt 0:01:02]} 29. dxe4 {[%emt 0:01:54]} Qxb7 {[%emt 0:04:46]} 30. exf5 {[%emt 0:10:28]} Qd7 {[%emt 0:00:25]} 31. fxg6+ {[%emt 0:00:29]} Kh8 {[%emt 0:02:37]} 32. Bc6 {[%emt 0:01:42]} Nxc6 {[%emt 0:07:06]} 33. Rxc6 {[%emt 0:00:06]} Rxc6 {[%emt 0:00:56]} 34. Qxc6 {[%emt 0:05:06]} Qe7 {[%emt 0:00:02]} 35. Rb1 {[%emt 0:00:41]} Qe6 {[%emt 0:00:30]} 36. Rc1 {[%emt 0:00:09]} Bf8 {[%emt 0:00:41]} 37. Qc3+ {[%emt 0:01:14]} Kg8 {[%emt 0:01:44]} 38. Qd3 {[%emt 0:01:22]} Bxb4 {[%emt 0:00:29]} 39. h4 {[%emt 0:00:33]} 0-1

[Event "White Rook U14 Final 2019"]
[Site "Sochi"]
[Date "2019.06.10"]
[Round "9.10"]
[White "Pingin, Artem"]
[Black "Dyl, Nikita"]
[Result "1-0"]
[ECO "C41"]
[WhiteElo "2108"]
[BlackElo "1646"]
[Annotator "NA"]
[PlyCount "43"]
[EventDate "2019.06.02"]
[EventCountry "RUS"]
[SourceTitle "playchess.com"]
[Source "ChessBase"]
[SourceQuality "1"]
[TimeControl "5400+30"]

1. e4 {[%emt 0:00:00]} d6 {[%emt 0:00:00]} 2. d4 {[%emt 0:00:00]} Nf6 {[%emt 0:00:00]} 3. Nc3 {[%emt 0:00:00]} g6 {[%emt 0:00:00]} 4. Be3 {[%emt 0:00:00]} Bg7 {[%emt 0:00:00]} 5. Qd2 {[%emt 0:00:02]} O-O {[%emt 0:01:04]} 6. f3 {[%emt 0:01:26]} e5 {[%emt 0:02:08]} 7. Nge2 {[%emt 0:03:28]} exd4 {[%emt 0:02:23]} 8. Nxd4 {[%emt 0:00:13]} Nbd7 {[%emt 0:00:33]} 9. O-O-O {[%emt 0:01:15]} Ne5 {[%emt 1:11:38]} 10. h3 {[%emt 0:57:02]} a6 {[%emt 0:00:03]} 11. f4 {[%emt 0:00:03]} Ned7 {[%emt 0:00:03]} 12. Bd3 {[%emt 0:00:02]} Re8 {[%emt 0:00:02]} 13. Rhe1 {[%emt 0:00:04]} Nc5 {[%emt 0:00:02]} 14. Bf2 {[%emt 0:00:02]} Nxd3+ {[%emt 0:00:05]} 15. Qxd3 {[%emt 0:00:02]} b5 {[%emt 0:00:02]} 16. Bh4 {[%emt 0:00:03]} Qd7 {[%emt 0:00:02]} 17. e5 {[%emt 0:00:02]} dxe5 {[%emt 0:00:02]} 18. fxe5 {[%emt 0:00:02]} Nh5 {[%emt 0:00:02]} 19. Qf3 {[%emt 0:00:02]} Rb8 {[%emt 0:00:02]} 20. Nc6 {[%emt 0:00:03]} Qe6 {[%emt 0:00:13]} 21. Nxb8 {[%emt 0:00:03]} b4 {[%emt 0:00:02]} 22. Nd5 {[%emt 0:00:02]} 1-0

[Event "White Rook U14 Final 2019"]
[Site "Sochi"]
[Date "2019.06.10"]
[Round "9.11"]
[White "Zaiko, Stanislav"]
[Black "Shirkunov, Alexandr"]
[Result "1/2-1/2"]
[ECO "B13"]
[WhiteElo "1176"]
[BlackElo "1557"]
[Annotator "NA"]
[PlyCount "104"]
[EventDate "2019.06.02"]
[EventCountry "RUS"]
[SourceTitle "playchess.com"]
[Source "ChessBase"]
[SourceQuality "1"]
[TimeControl "5400+30"]

1. e4 {[%emt 0:00:00]} c6 {[%emt 0:00:43]} 2. d4 {[%emt 0:00:00]} d5 {[%emt 0:00:03]} 3. exd5 {[%emt 0:00:00]} cxd5 {[%emt 0:00:03]} 4. Bd3 {[%emt 0:00:00]} Nc6 {[%emt 0:00:05]} 5. c3 {[%emt 0:00:00]} Nf6 {[%emt 0:00:05]} 6. h3 {[%emt 0:00:00]} g6 {[%emt 0:00:05]} 7. Nf3 {[%emt 0:00:00]} Bf5 {[%emt 0:00:32]} 8. Bxf5 {[%emt 0:00:38]} gxf5 {[%emt 0:00:06]} 9. Bg5 {[%emt 0:00:39]} Bg7 {[%emt 0:00:17]} 10. O-O {[%emt 0:00:42]} O-O {[%emt 0:00:56]} 11. Nbd2 {[%emt 0:01:40]} Qc7 {[%emt 0:01:11]} 12. Re1 {[%emt 0:20:29]} Ne4 {[%emt 0:14:15]} 13. Nxe4 {[%emt 0:00:00]} fxe4 {[%emt 0:00:00]} 14. Nh4 {[%emt 0:00:00]} e6 {[%emt 0:00:00]} 15. g3 {[%emt 0:00:00]} b5 {[%emt 0:00:00]} 16. Bf4 {[%emt 0:00:00]} Qe7 {[%emt 0:00:00]} 17. a3 {[%emt 0:00:00]} Rad8 {[%emt 0:03:52]} 18. Qe2 {[%emt 0:06:23]} a6 {[%emt 0:00:29]} 19. Red1 {[%emt 0:35:51]} f5 {[%emt 0:21:37]} 20. Ng2 {[%emt 0:00:00]} e5 {[%emt 0:00:00]} 21. dxe5 {[%emt 0:00:00]} Nxe5 {[%emt 0:00:00]} 22. Bxe5 {[%emt 0:00:00]} Qxe5 {[%emt 0:00:00]} 23. Qe3 {[%emt 0:04:00]} d4 {[%emt 0:02:00]} 24. cxd4 {[%emt 0:10:46]} Rxd4 {[%emt 0:05:39]} 25. Rxd4 {[%emt 0:00:42]} Qxd4 {[%emt 0:00:13]} 26. Qxd4 {[%emt 0:00:54]} Bxd4 {[%emt 0:00:09]} 27. Rb1 {[%emt 0:04:14]} Rc8 {[%emt 0:00:03]} 28. Ne1 {[%emt 0:00:47]} Kf7 {[%emt 0:02:10]} 29. Kf1 {[%emt 0:02:33]} Ke6 {[%emt 0:02:20]} 30. Ke2 {[%emt 0:00:44]} a5 {[%emt 0:00:52]} 31. Kf1 {[%emt 0:01:04]} b4 {[%emt 0:01:49]} 32. axb4 {[%emt 0:04:48]} axb4 {[%emt 0:03:07]} 33. Ke2 {[%emt 0:01:09]} b3 {[%emt 0:00:39]} 34. g4 {[%emt 0:00:07]} fxg4 {[%emt 0:00:37]} 35. hxg4 {[%emt 0:01:12]} Rf8 {[%emt 0:04:10]} 36. f3 {[%emt 0:00:31]} Rf4 {[%emt 0:02:33]} 37. Ra1 {[%emt 0:00:19]} exf3+ {[%emt 0:00:43]} 38. Nxf3 {[%emt 0:03:52]} Rxg4 {[%emt 0:00:19]} 39. Ra4 {[%emt 0:00:05]} Rg2+ {[%emt 0:01:03]} 40. Kd3 {[%emt 0:00:51]} Bf6 {[%emt 0:00:05]} 41. Nd2 {[%emt 0:01:02]} h5 {[%emt 0:01:39]} 42. Nxb3 {[%emt 0:00:50]} Rg3+ {[%emt 0:02:16]} 43. Kc2 {[%emt 0:00:16]} h4 {[%emt 0:01:29]} 44. Nc5+ {[%emt 0:00:08]} Kd5 {[%emt 0:00:31]} 45. Ne4 {[%emt 0:01:03]} Rg2+ {[%emt 0:04:13]} 46. Kd3 {[%emt 0:01:21]} Bxb2 {[%emt 0:00:14]} 47. Ra5+ {[%emt 0:00:26]} Ke6 {[%emt 0:02:13]} 48. Ng5+ {[%emt 0:00:46]} Kf6 {[%emt 0:01:40]} 49. Nf3 {[%emt 0:01:14]} h3 {[%emt 0:01:15]} 50. Rh5 {[%emt 0:00:24]} Rg3 {[%emt 0:02:30]} 51. Ke2 {[%emt 0:00:20]} Rg2+ {[%emt 0:00:45]} 52. Kf1 {[%emt 0:00:30]} Rg3 {[%emt 0:00:39]} 1/2-1/2

[Event "White Rook U14 Final 2019"]
[Site "Sochi"]
[Date "2019.06.10"]
[Round "9.12"]
[White "Toledo Flores, Marianna"]
[Black "Zeliantsova, Kseniya"]
[Result "0-1"]
[ECO "B42"]
[WhiteElo "1530"]
[BlackElo "1892"]
[Annotator "NA"]
[PlyCount "123"]
[EventDate "2019.06.02"]
[EventCountry "RUS"]
[SourceTitle "playchess.com"]
[Source "ChessBase"]
[SourceQuality "1"]
[TimeControl "5400+30"]

1. e4 {[%emt 0:00:00]} c5 {[%emt 0:00:00]} 2. Nf3 {[%emt 0:00:00]} e6 {[%emt 0:00:00]} 3. d4 {[%emt 0:00:00]} cxd4 {[%emt 0:00:00]} 4. Nxd4 {[%emt 0:00:00]} Qb6 {[%emt 0:00:47]} 5. Nb3 {[%emt 0:00:29]} a6 {[%emt 0:00:29]} 6. Bd3 {[%emt 0:00:27]} Nc6 {[%emt 0:00:36]} 7. Be3 {[%emt 0:00:43]} Qc7 {[%emt 0:00:05]} 8. O-O {[%emt 0:00:42]} Nf6 {[%emt 0:00:36]} 9. f4 {[%emt 0:00:41]} d6 {[%emt 0:01:08]} 10. c4 {[%emt 0:01:04]} Nb4 {[%emt 0:02:54]} 11. Nc3 {[%emt 0:13:06]} Nxd3 {[%emt 0:17:35]} 12. Qxd3 {[%emt 0:00:00]} Bd7 {[%emt 0:00:00]} 13. Kh1 {[%emt 0:00:00]} Be7 {[%emt 0:00:00]} 14. Nd4 {[%emt 0:00:00]} Rc8 {[%emt 0:00:00]} 15. b3 {[%emt 0:00:00]} b5 {[%emt 0:00:00]} 16. Rac1 {[%emt 0:00:00]} b4 {[%emt 0:00:00]} 17. Nd1 {[%emt 0:00:00]} O-O {[%emt 0:09:42]} 18. Nf2 {[%emt 0:17:32]} g6 {[%emt 0:37:05]} 19. Rce1 {[%emt 0:00:00]} e5 {[%emt 0:00:00]} 20. Nc2 {[%emt 0:00:00]} Qb7 {[%emt 0:00:00]} 21. Bd2 {[%emt 0:00:00]} a5 {[%emt 0:00:00]} 22. Ne3 {[%emt 0:00:00]} Bc6 {[%emt 0:00:00]} 23. Nd5 {[%emt 0:00:00]} Bxd5 {[%emt 0:00:00]} 24. exd5 {[%emt 0:00:00]} Nd7 {[%emt 0:00:00]} 25. f5 {[%emt 0:00:00]} Nc5 {[%emt 0:00:00]} 26. Qh3 {[%emt 0:00:00]} Qd7 {[%emt 0:00:01]} 27. Ng4 {[%emt 0:05:20]} f6 {[%emt 0:05:38]} 28. Re3 {[%emt 0:07:59]} g5 {[%emt 0:01:23]} 29. Qh6 {[%emt 0:07:01]} Bd8 {[%emt 0:02:51]} 30. h4 {[%emt 0:02:10]} Qg7 {[%emt 0:01:02]} 31. hxg5 {[%emt 0:01:06]} Qxh6+ {[%emt 0:03:24]} 32. Nxh6+ {[%emt 0:05:04]} Kg7 {[%emt 0:00:09]} 33. g6 {[%emt 0:04:53]} hxg6 {[%emt 0:00:31]} 34. Rg3 {[%emt 0:00:25]} g5 {[%emt 0:00:23]} 35. Rh3 {[%emt 0:02:04]} Ne4 {[%emt 0:03:41]} 36. Be1 {[%emt 0:00:45]} Rh8 {[%emt 0:00:51]} 37. Ng4 {[%emt 0:00:11]} Bb6 {[%emt 0:00:03]} 38. Rff3 {[%emt 0:01:02]} Bd4 {[%emt 0:00:39]} 39. Kh2 {[%emt 0:06:13]} Nc3 {[%emt 0:02:20]} 40. a4 {[%emt 0:02:10]} e4 {[%emt 0:00:43]} 41. Rf1 {[%emt 0:02:13]} e3 {[%emt 0:01:11]} 42. Bg3 {[%emt 0:01:19]} Ne4 {[%emt 0:00:30]} 43. Re1 {[%emt 0:02:29]} Rce8 {[%emt 0:01:34]} 44. Re2 {[%emt 0:01:29]} Bc5 {[%emt 0:02:02]} 45. Be1 {[%emt 0:00:50]} Nc3 {[%emt 0:01:40]} 46. Bxc3 {[%emt 0:00:26]} bxc3 {[%emt 0:00:02]} 47. Rxh8 {[%emt 0:02:43]} Rxh8+ {[%emt 0:00:02]} 48. Kg3 {[%emt 0:00:14]} Rb8 {[%emt 0:00:03]} 49. Nxe3 {[%emt 0:00:16]} Bxe3 {[%emt 0:01:05]} 50. Rxe3 {[%emt 0:02:13]} Rxb3 {[%emt 0:00:20]} 51. c5 {[%emt 0:01:08]} c2 {[%emt 0:00:00]} 52. Rxb3 {[%emt 0:00:44]} c1=Q {[%emt 0:00:18]} 53. Rb7+ {[%emt 0:00:05]} Kh6 {[%emt 0:00:04]} 54. Kf3 {[%emt 0:00:49]} Qxc5 {[%emt 0:00:00]} 55. Rb5 {[%emt 0:00:17]} Qa3+ {[%emt 0:00:10]} 56. Kf2 {[%emt 0:00:15]} Qb4 {[%emt 0:00:08]} 57. Rb8 {[%emt 0:00:21]} Qd4+ {[%emt 0:00:00]} 58. Ke2 {[%emt 0:00:00]} Qxd5 {[%emt 0:00:00]} 59. g3 {[%emt 0:00:00]} Qxf5 {[%emt 0:00:00]} 60. Rh8+ {[%emt 0:01:39]} Kg7 {[%emt 0:00:31]} 61. Rd8 {[%emt 0:01:21]} Qe4+ {[%emt 0:00:00]} 62. Kd2 {[%emt 0:00:43]} 0-1

[Event "White Rook U14 Final 2019"]
[Site "Sochi"]
[Date "2019.06.10"]
[Round "9.13"]
[White "Mongush, Kezhik"]
[Black "Sizov, Lev"]
[Result "1-0"]
[ECO "D31"]
[WhiteElo "1824"]
[BlackElo "1692"]
[Annotator "NA"]
[PlyCount "100"]
[EventDate "2019.06.02"]
[EventCountry "RUS"]
[SourceTitle "playchess.com"]
[Source "ChessBase"]
[SourceQuality "1"]
[TimeControl "5400+30"]

1. d4 {[%emt 0:00:00]} d5 {[%emt 0:00:00]} 2. c4 {[%emt 0:00:00]} e6 {[%emt 0:00:00]} 3. Nc3 {[%emt 0:01:19]} c6 {[%emt 0:00:00]} 4. Nf3 {[%emt 0:00:37]} dxc4 {[%emt 0:00:00]} 5. a4 {[%emt 0:02:06]} Bb4 {[%emt 0:00:05]} 6. e3 {[%emt 0:03:02]} b5 {[%emt 0:01:25]} 7. Bd2 {[%emt 0:02:17]} a5 {[%emt 0:00:00]} 8. axb5 {[%emt 0:16:10]} Bxc3 {[%emt 0:13:51]} 9. Bxc3 {[%emt 0:00:00]} cxb5 {[%emt 0:00:00]} 10. b3 {[%emt 0:00:00]} Bb7 {[%emt 0:00:00]} 11. bxc4 {[%emt 0:00:00]} b4 {[%emt 0:00:00]} 12. Bb2 {[%emt 0:00:00]} Nf6 {[%emt 0:00:00]} 13. Bd3 {[%emt 0:00:00]} O-O {[%emt 0:00:00]} 14. O-O {[%emt 0:00:00]} Nbd7 {[%emt 0:00:00]} 15. c5 {[%emt 0:00:00]} Qc7 {[%emt 0:50:23]} 16. Bb5 {[%emt 0:20:25]} Bc6 {[%emt 0:00:00]} 17. Ba4 {[%emt 0:00:00]} Rfb8 {[%emt 0:00:00]} 18. Nd2 {[%emt 0:00:00]} h6 {[%emt 0:03:39]} 19. Nc4 {[%emt 0:01:30]} Bb5 {[%emt 0:06:37]} 20. Bxb5 {[%emt 0:13:16]} Rxb5 {[%emt 0:07:23]} 21. Qa4 {[%emt 0:12:02]} Rbb8 {[%emt 0:00:03]} 22. Qb3 {[%emt 0:00:30]} h5 {[%emt 0:01:59]} 23. Ra4 {[%emt 0:08:00]} Ra6 {[%emt 0:03:24]} 24. Rfa1 {[%emt 0:07:31]} Rba8 {[%emt 0:01:31]} 25. Qd3 {[%emt 0:00:40]} Qc6 {[%emt 0:00:42]} 26. Rxa5 {[%emt 0:02:08]} Rxa5 {[%emt 0:02:04]} 27. Nxa5 {[%emt 0:00:48]} Qc7 {[%emt 0:01:49]} 28. Qb5 {[%emt 0:00:11]} Rc8 {[%emt 0:01:29]} 29. Qxb4 {[%emt 0:01:49]} Rb8 {[%emt 0:04:18]} 30. Qd2 {[%emt 0:01:41]} Ng4 {[%emt 0:00:30]} 31. g3 {[%emt 0:02:37]} h4 {[%emt 0:01:22]} 32. Bc3 {[%emt 0:02:06]} hxg3 {[%emt 0:00:30]} 33. hxg3 {[%emt 0:01:08]} Ndf6 {[%emt 0:00:54]} 34. Qd3 {[%emt 0:00:06]} Nh5 {[%emt 0:00:10]} 35. Be1 {[%emt 0:00:32]} Rb2 {[%emt 0:01:55]} 36. Nc4 {[%emt 0:00:53]} Nxg3 {[%emt 0:00:32]} 37. Ra8+ {[%emt 0:01:00]} Rb8 {[%emt 0:00:54]} 38. Rxb8+ {[%emt 0:00:30]} Qxb8 {[%emt 0:00:07]} 39. fxg3 {[%emt 0:00:08]} Qa8 {[%emt 0:00:01]} 40. Qe2 {[%emt 0:00:11]} f5 {[%emt 0:00:17]} 41. Ne5 {[%emt 0:00:41]} Nf6 {[%emt 0:01:15]} 42. c6 {[%emt 0:01:56]} Nd5 {[%emt 0:01:02]} 43. Bf2 {[%emt 0:00:09]} Qa1+ {[%emt 0:00:35]} 44. Kg2 {[%emt 0:00:58]} Qc3 {[%emt 0:00:00]} 45. Qd3 {[%emt 0:00:13]} Qc1 {[%emt 0:00:51]} 46. e4 {[%emt 0:00:01]} fxe4 {[%emt 0:00:11]} 47. Qxe4 {[%emt 0:01:02]} Nf6 {[%emt 0:00:29]} 48. Qe2 {[%emt 0:00:36]} Qc3 {[%emt 0:00:40]} 49. Qc4 {[%emt 0:00:14]} Qd2 {[%emt 0:00:26]} 50. Qxe6+ {[%emt 0:00:46]} Kh7 {[%emt 0:00:29]} 1-0

[Event "White Rook U14 Final 2019"]
[Site "Sochi"]
[Date "2019.06.10"]
[Round "9.14"]
[White "Komissarova, Soigina"]
[Black "Fomkin, Dmitry"]
[Result "1/2-1/2"]
[ECO "B56"]
[WhiteElo "1665"]
[BlackElo "1733"]
[Annotator "NA"]
[PlyCount "71"]
[EventDate "2019.06.02"]
[EventCountry "RUS"]
[SourceTitle "playchess.com"]
[Source "ChessBase"]
[SourceQuality "1"]
[TimeControl "5400+30"]

1. e4 {[%emt 0:00:00]} c5 {[%emt 0:00:00]} 2. Nf3 {[%emt 0:00:00]} d6 {[%emt 0:00:00]} 3. d4 {[%emt 0:00:00]} cxd4 {[%emt 0:00:00]} 4. Nxd4 {[%emt 0:00:00]} Nf6 {[%emt 0:00:00]} 5. Nc3 {[%emt 0:00:11]} Nc6 {[%emt 0:00:20]} 6. f3 {[%emt 0:03:51]} e5 {[%emt 0:01:21]} 7. Nb3 {[%emt 0:01:03]} Be7 {[%emt 0:02:32]} 8. Be3 {[%emt 0:00:53]} O-O {[%emt 0:08:42]} 9. Qd2 {[%emt 0:26:36]} a5 {[%emt 0:00:00]} 10. a4 {[%emt 0:00:00]} Nb4 {[%emt 0:00:00]} 11. Bb5 {[%emt 0:44:46]} Be6 {[%emt 0:18:26]} 12. O-O {[%emt 0:00:01]} Rc8 {[%emt 0:00:00]} 13. Qf2 {[%emt 0:00:00]} d5 {[%emt 0:00:00]} 14. exd5 {[%emt 0:00:00]} Nfxd5 {[%emt 0:00:00]} 15. Rfd1 {[%emt 0:00:00]} Qc7 {[%emt 0:00:00]} 16. Nxd5 {[%emt 0:00:00]} Nxd5 {[%emt 0:00:00]} 17. c4 {[%emt 0:03:52]} Nxe3 {[%emt 0:03:29]} 18. Qxe3 {[%emt 0:00:00]} Rfd8 {[%emt 0:05:00]} 19. Kh1 {[%emt 0:08:15]} Bb4 {[%emt 0:02:23]} 20. h3 {[%emt 0:04:29]} Rd6 {[%emt 0:01:17]} 21. Rf1 {[%emt 0:03:38]} f6 {[%emt 0:02:27]} 22. f4 {[%emt 0:02:27]} exf4 {[%emt 0:00:14]} 23. Qxf4 {[%emt 0:00:00]} Rcd8 {[%emt 0:03:27]} 24. Rac1 {[%emt 0:00:41]} Qf7 {[%emt 0:00:20]} 25. c5 {[%emt 0:00:34]} Rd5 {[%emt 0:00:57]} 26. Bc4 {[%emt 0:00:24]} Re5 {[%emt 0:01:08]} 27. Bxe6 {[%emt 0:00:44]} Qxe6 {[%emt 0:00:11]} 28. Nd4 {[%emt 0:00:00]} Qd5 {[%emt 0:00:28]} 29. Nf3 {[%emt 0:00:13]} Re4 {[%emt 0:00:52]} 30. Qc7 {[%emt 0:00:16]} Rd7 {[%emt 0:11:34]} 31. Qc8+ {[%emt 0:00:11]} Rd8 {[%emt 0:00:11]} 32. Qc7 {[%emt 0:00:34]} Rd7 {[%emt 0:00:12]} 33. Qb8+ {[%emt 0:01:07]} Rd8 {[%emt 0:00:35]} 34. Qc7 {[%emt 0:00:23]} Rd7 {[%emt 0:00:04]} 35. Qc8+ {[%emt 0:01:20]} Rd8 {[%emt 0:00:05]} 36. Qc7 {[%emt 0:00:20]} 1/2-1/2

[Event "White Rook U14 Final 2019"]
[Site "Sochi"]
[Date "2019.06.10"]
[Round "9.15"]
[White "Ponomarev, Andrey A."]
[Black "Zhambalov, Bator"]
[Result "1-0"]
[ECO "B33"]
[WhiteElo "1919"]
[BlackElo "1142"]
[Annotator "NA"]
[PlyCount "67"]
[EventDate "2019.06.02"]
[EventCountry "RUS"]
[SourceTitle "playchess.com"]
[Source "ChessBase"]
[SourceQuality "1"]
[TimeControl "5400+30"]

1. e4 {[%emt 0:00:00]} c5 {[%emt 0:00:00]} 2. Nf3 {[%emt 0:00:15]} Nc6 {[%emt 0:00:09]} 3. d4 {[%emt 0:01:54]} cxd4 {[%emt 0:00:07]} 4. Nxd4 {[%emt 0:00:08]} Nf6 {[%emt 0:00:09]} 5. Nc3 {[%emt 0:00:46]} e5 {[%emt 0:00:00]} 6. Ndb5 {[%emt 0:00:55]} d6 {[%emt 0:00:08]} 7. Bg5 {[%emt 0:01:04]} a6 {[%emt 0:00:00]} 8. Na3 {[%emt 0:00:36]} b5 {[%emt 0:00:16]} 9. Bxf6 {[%emt 0:00:32]} gxf6 {[%emt 0:00:18]} 10. Nd5 {[%emt 0:00:26]} Be6 {[%emt 0:00:34]} 11. Bd3 {[%emt 0:00:43]} f5 {[%emt 0:02:49]} 12. c3 {[%emt 0:00:46]} f4 {[%emt 0:35:26]} 13. g3 {[%emt 0:00:00]} fxg3 {[%emt 0:00:00]} 14. hxg3 {[%emt 0:00:00]} h6 {[%emt 0:00:00]} 15. Nc2 {[%emt 0:00:00]} Rg8 {[%emt 0:00:00]} 16. Nce3 {[%emt 0:00:00]} Rb8 {[%emt 0:57:34]} 17. Qf3 {[%emt 0:00:00]} Rg6 {[%emt 0:00:00]} 18. Nf5 {[%emt 0:00:00]} a5 {[%emt 0:00:00]} 19. Bc2 {[%emt 0:00:00]} Rb7 {[%emt 0:00:00]} 20. Rd1 {[%emt 0:00:00]} f6 {[%emt 0:00:00]} 21. Bb3 {[%emt 0:00:00]} a4 {[%emt 0:00:00]} 22. Nc7+ {[%emt 0:01:34]} Rxc7 {[%emt 0:00:04]} 23. Bxe6 {[%emt 0:01:01]} Rg5 {[%emt 0:00:40]} 24. Nxh6 {[%emt 0:02:30]} Qe7 {[%emt 0:01:38]} 25. Bd5 {[%emt 0:00:16]} Kd7 {[%emt 0:00:37]} 26. Ng8 {[%emt 0:00:24]} Qg7 {[%emt 0:00:59]} 27. Rh7 {[%emt 0:00:42]} Qxh7 {[%emt 0:00:56]} 28. Nxf6+ {[%emt 0:00:08]} Kc8 {[%emt 0:00:00]} 29. Nxh7 {[%emt 0:00:11]} Rgg7 {[%emt 0:00:26]} 30. Qxf8+ {[%emt 0:00:19]} Kb7 {[%emt 0:00:00]} 31. Bxc6+ {[%emt 0:00:11]} Kxc6 {[%emt 0:00:04]} 32. Qxd6+ {[%emt 0:00:18]} Kb7 {[%emt 0:00:00]} 33. Nf6 {[%emt 0:00:08]} Rc6 {[%emt 0:00:07]} 34. Qxe5 {[%emt 0:00:04]} 1-0

[Event "White Rook U14 Final 2019"]
[Site "Sochi"]
[Date "2019.06.10"]
[Round "9.16"]
[White "Sargaeva, Darima"]
[Black "Namay, Viktoria"]
[Result "1-0"]
[ECO "B15"]
[WhiteElo "1506"]
[BlackElo "1359"]
[Annotator "NA"]
[PlyCount "149"]
[EventDate "2019.06.02"]
[EventCountry "RUS"]
[SourceTitle "playchess.com"]
[Source "ChessBase"]
[SourceQuality "1"]
[TimeControl "5400+30"]

1. e4 {[%emt 0:00:00]} c6 {[%emt 0:00:00]} 2. d4 {[%emt 0:00:00]} d5 {[%emt 0:00:00]} 3. Nc3 {[%emt 0:00:00]} dxe4 {[%emt 0:00:00]} 4. Nxe4 {[%emt 0:00:02]} Nf6 {[%emt 0:00:24]} 5. Nxf6+ {[%emt 0:00:05]} exf6 {[%emt 0:00:27]} 6. c3 {[%emt 0:00:24]} Bd6 {[%emt 0:00:39]} 7. Bd3 {[%emt 0:00:12]} O-O {[%emt 0:00:59]} 8. Qc2 {[%emt 0:00:06]} Re8+ {[%emt 0:00:00]} 9. Ne2 {[%emt 0:00:10]} h5 {[%emt 0:00:13]} 10. O-O {[%emt 0:00:19]} Qc7 {[%emt 0:00:47]} 11. h3 {[%emt 0:00:16]} Nd7 {[%emt 0:00:29]} 12. c4 {[%emt 0:00:37]} Nf8 {[%emt 0:00:31]} 13. c5 {[%emt 0:00:13]} Be7 {[%emt 0:00:24]} 14. Bc4 {[%emt 0:00:18]} Be6 {[%emt 0:01:20]} 15. Nf4 {[%emt 0:00:35]} Bxc4 {[%emt 0:23:52]} 16. Qxc4 {[%emt 0:14:20]} Rad8 {[%emt 0:00:35]} 17. Rd1 {[%emt 0:00:32]} Qd7 {[%emt 0:01:03]} 18. Be3 {[%emt 0:00:29]} g6 {[%emt 0:00:32]} 19. d5 {[%emt 0:00:32]} cxd5 {[%emt 0:00:55]} 20. Nxd5 {[%emt 0:00:29]} Qe6 {[%emt 0:00:43]} 21. Qb5 {[%emt 0:00:30]} a6 {[%emt 0:01:00]} 22. Qxb7 {[%emt 0:00:30]} Rb8 {[%emt 0:01:36]} 23. Nxe7+ {[%emt 0:05:25]} Qxe7 {[%emt 1:04:31]} 24. Qxe7 {[%emt 0:00:00]} Rxe7 {[%emt 0:00:03]} 25. b3 {[%emt 0:00:00]} Ne6 {[%emt 0:00:05]} 26. Rd6 {[%emt 0:00:01]} Rc7 {[%emt 0:00:02]} 27. Rxa6 {[%emt 0:00:02]} Nxc5 {[%emt 0:00:02]} 28. Bxc5 {[%emt 0:00:07]} Rxc5 {[%emt 0:00:04]} 29. Rxf6 {[%emt 0:00:03]} Ra5 {[%emt 0:00:03]} 30. Rf3 {[%emt 0:00:02]} Ra3 {[%emt 0:00:02]} 31. Re3 {[%emt 0:00:02]} Kg7 {[%emt 0:00:03]} 32. Kf1 {[%emt 0:00:02]} Rba8 {[%emt 0:00:03]} 33. Re2 {[%emt 0:00:03]} Rxb3 {[%emt 0:00:02]} 34. axb3 {[%emt 0:00:04]} Rxa1+ {[%emt 0:00:03]} 35. Re1 {[%emt 0:00:04]} Ra8 {[%emt 0:00:02]} 36. Rb1 {[%emt 0:00:03]} Rb8 {[%emt 0:00:02]} 37. Ke2 {[%emt 0:00:03]} Kf6 {[%emt 0:00:02]} 38. Kd3 {[%emt 0:00:05]} Ke5 {[%emt 0:00:02]} 39. Kc4 {[%emt 0:00:03]} Rc8+ {[%emt 0:00:02]} 40. Kd3 {[%emt 0:00:02]} Kd5 {[%emt 0:00:02]} 41. b4 {[%emt 0:00:02]} Ra8 {[%emt 0:00:02]} 42. b5 {[%emt 0:00:02]} Ra3+ {[%emt 0:00:02]} 43. Ke2 {[%emt 0:00:02]} Ra8 {[%emt 0:00:07]} 44. Kf3 {[%emt 0:00:03]} Rb8 {[%emt 0:00:02]} 45. Kf4 {[%emt 0:00:02]} f6 {[%emt 0:00:02]} 46. g4 {[%emt 0:00:02]} h4 {[%emt 0:00:04]} 47. b6 {[%emt 0:00:03]} Rb7 {[%emt 0:00:03]} 48. g5 {[%emt 0:00:02]} f5 {[%emt 0:00:07]} 49. f3 {[%emt 0:00:03]} Kc6 {[%emt 0:00:02]} 50. Rb4 {[%emt 0:00:03]} Kd6 {[%emt 0:00:03]} 51. Ke3 {[%emt 0:00:02]} Ke5 {[%emt 0:00:02]} 52. Rb5+ {[%emt 0:00:02]} Ke6 {[%emt 0:00:03]} 53. Kd4 {[%emt 0:00:03]} Kd6 {[%emt 0:00:03]} 54. Rd5+ {[%emt 0:00:02]} Ke6 {[%emt 0:00:02]} 55. Rb5 {[%emt 0:00:03]} Kd6 {[%emt 0:00:02]} 56. f4 {[%emt 0:00:02]} Kc6 {[%emt 0:00:02]} 57. Rb2 {[%emt 0:00:16]} Kd6 {[%emt 0:00:03]} 58. Kc4 {[%emt 0:00:02]} Kc6 {[%emt 0:00:01]} 59. Re2 {[%emt 0:00:02]} Rxb6 {[%emt 0:00:02]} 60. Re6+ {[%emt 0:00:24]} Kc7 {[%emt 0:00:03]} 61. Rxb6 {[%emt 0:00:02]} Kxb6 {[%emt 0:00:03]} 62. Kd5 {[%emt 0:00:02]} Kb5 {[%emt 0:00:03]} 63. Ke6 {[%emt 0:00:02]} Kc4 {[%emt 0:00:08]} 64. Kf6 {[%emt 0:00:02]} Kd4 {[%emt 0:00:03]} 65. Kxg6 {[%emt 0:00:11]} Ke4 {[%emt 0:00:02]} 66. Kf6 {[%emt 0:00:02]} Kxf4 {[%emt 0:00:02]} 67. g6 {[%emt 0:00:03]} Kg3 {[%emt 0:00:07]} 68. Kxf5 {[%emt 0:00:02]} Kxh3 {[%emt 0:00:02]} 69. g7 {[%emt 0:00:03]} Kh2 {[%emt 0:00:02]} 70. g8=Q {[%emt 0:00:02]} h3 {[%emt 0:00:03]} 71. Kg4 {[%emt 0:00:03]} Kh1 {[%emt 0:00:02]} 72. Qd5+ {[%emt 0:00:02]} Kh2 {[%emt 0:00:02]} 73. Qd2+ {[%emt 0:00:02]} Kh1 {[%emt 0:00:04]} 74. Kxh3 {[%emt 0:00:02]} Kg1 {[%emt 0:00:05]} 75. Qg2# {[%emt 0:00:03]} 1-0